[Event "Late-Titled-Tuesday-Blitz-March-19-2024"]
[Site "Chess.com"]
[Date "2024.03.19"]
[Round "10"]
[White "Lion-Al-Messi"]
[Black "KetiTsatsalashvili"]
[Result "1-0"]
[WhiteElo "2575"]
[BlackElo "2460"]
[TimeControl "180+1"]
[EndTime "15:50:45 PDT"]
[Termination "Lion-Al-Messi won by resignation"]

1. e4 {[%clk 0:02:52.4]} 1... c5 {[%clk 0:02:58.9]} 2. Nf3 {[%clk 0:02:51.5]}
2... d6 {[%clk 0:02:59.5]} 3. d4 {[%clk 0:02:51.5]} 3... cxd4 {[%clk 0:03:00.4]}
4. Nxd4 {[%clk 0:02:51.6]} 4... Nf6 {[%clk 0:03:01]} 5. Nc3 {[%clk 0:02:51.9]}
5... Nc6 {[%clk 0:03:01.4]} 6. Bg5 {[%clk 0:02:51.3]} 6... e6 {[%clk 0:03:01.3]}
7. Qd2 {[%clk 0:02:51.2]} 7... a6 {[%clk 0:03:01.8]} 8. O-O-O {[%clk 0:02:50.9]}
8... Be7 {[%clk 0:03:02.4]} 9. f4 {[%clk 0:02:48.3]} 9... Qc7 {[%clk 0:03:00.9]}
10. Kb1 {[%clk 0:02:40.3]} 10... b5 {[%clk 0:02:45.7]} 11. Nxc6 {[%clk
0:02:37.9]} 11... Qxc6 {[%clk 0:02:45.6]} 12. e5 {[%clk 0:02:38.1]} 12... dxe5
{[%clk 0:02:24.9]} 13. fxe5 {[%clk 0:02:36.6]} 13... Nd7 {[%clk 0:01:24.6]} 14.
Bxe7 {[%clk 0:02:32.1]} 14... Kxe7 {[%clk 0:01:25.5]} 15. Bd3 {[%clk 0:02:28.9]}
15... h6 {[%clk 0:01:21.7]} 16. Be4 {[%clk 0:02:28.7]} 16... Qc7 {[%clk
0:01:10.9]} 17. Qd6+ {[%clk 0:02:26.9]} 17... Qxd6 {[%clk 0:01:09.1]} 18. exd6+
{[%clk 0:02:27.8]} 18... Kf6 {[%clk 0:01:08.6]} 19. Bxa8 {[%clk 0:02:28.7]}
19... b4 {[%clk 0:01:05]} 20. Rhf1+ {[%clk 0:02:25.6]} 20... Kg6 {[%clk
0:01:04]} 21. Ne4 {[%clk 0:02:23.3]} 21... f5 {[%clk 0:01:03.1]} 22. Nf2 {[%clk
0:02:18.9]} 22... Ne5 {[%clk 0:01:00]} 23. Nd3 {[%clk 0:02:17.7]} 23... Nc4
{[%clk 0:00:59.1]} 24. b3 {[%clk 0:02:17]} 24... Ne3 {[%clk 0:00:58.5]} 25. Ne5+
{[%clk 0:02:15.9]} 25... Kf6 {[%clk 0:00:58.4]} 26. d7 {[%clk 0:02:16]} 26...
Kxe5 {[%clk 0:00:54.8]} 27. d8=Q {[%clk 0:02:14.5]} 27... Rxd8 {[%clk
0:00:52.9]} 28. Rxd8 {[%clk 0:02:15.4]} 28... Nxf1 {[%clk 0:00:51.4]} 29. Rxc8
{[%clk 0:02:15.3]} 1-0

[Event "Late-Titled-Tuesday-Blitz-March-19-2024"]
[Site "Chess.com"]
[Date "2024.03.19"]
[Round "10"]
[White "DFeco"]
[Black "TregubovP"]
[Result "1/2-1/2"]
[WhiteElo "2497"]
[BlackElo "2689"]
[TimeControl "180+1"]
[EndTime "15:51:12 PDT"]
[Termination "Game drawn by repetition"]

1. d4 {[%clk 0:03:00.9]} 1... Nf6 {[%clk 0:02:58.6]} 2. Nf3 {[%clk 0:03:00.9]}
2... c5 {[%clk 0:02:57.6]} 3. d5 {[%clk 0:02:59.3]} 3... b5 {[%clk 0:02:57.7]}
4. Bg5 {[%clk 0:02:58.9]} 4... Qb6 {[%clk 0:02:56.8]} 5. Bxf6 {[%clk 0:02:59.1]}
5... Qxf6 {[%clk 0:02:56.5]} 6. c3 {[%clk 0:02:59.7]} 6... g6 {[%clk 0:02:53.7]}
7. e4 {[%clk 0:02:59.3]} 7... Qb6 {[%clk 0:02:54.3]} 8. Nbd2 {[%clk 0:02:54.6]}
8... Bg7 {[%clk 0:02:53.8]} 9. a4 {[%clk 0:02:54.1]} 9... b4 {[%clk 0:02:53.4]}
10. Nc4 {[%clk 0:02:53.9]} 10... Qb7 {[%clk 0:02:53]} 11. Qc2 {[%clk 0:02:51.9]}
11... O-O {[%clk 0:02:49.5]} 12. Be2 {[%clk 0:02:49.1]} 12... d6 {[%clk
0:02:46.7]} 13. O-O {[%clk 0:02:47.9]} 13... bxc3 {[%clk 0:02:46.1]} 14. bxc3
{[%clk 0:02:45.1]} 14... Qc7 {[%clk 0:02:46.4]} 15. Rfb1 {[%clk 0:02:38.9]}
15... Ba6 {[%clk 0:02:46]} 16. Ra3 {[%clk 0:02:34]} 16... Nd7 {[%clk 0:02:45.7]}
17. Ne3 {[%clk 0:02:23.2]} 17... Bxe2 {[%clk 0:02:41.6]} 18. Qxe2 {[%clk
0:02:23.4]} 18... Rab8 {[%clk 0:02:40.2]} 19. Rb5 {[%clk 0:02:01.4]} 19... a6
{[%clk 0:02:23.7]} 20. Rxb8 {[%clk 0:02:01.2]} 20... Rxb8 {[%clk 0:02:24.2]} 21.
Nd2 {[%clk 0:02:01.5]} 21... Rb2 {[%clk 0:02:11.1]} 22. Qd1 {[%clk 0:01:43.6]}
22... Ne5 {[%clk 0:02:01.1]} 23. Nec4 {[%clk 0:01:39.7]} 23... Nxc4 {[%clk
0:01:53.1]} 24. Nxc4 {[%clk 0:01:39.7]} 24... Rb7 {[%clk 0:01:49.3]} 25. Rb3
{[%clk 0:01:36.6]} 25... Qb8 {[%clk 0:01:48.1]} 26. Rxb7 {[%clk 0:01:30.7]}
26... Qxb7 {[%clk 0:01:48.7]} 27. Qc2 {[%clk 0:01:30.7]} 27... h5 {[%clk
0:01:39.3]} 28. h4 {[%clk 0:01:29.7]} 28... Bf6 {[%clk 0:01:38.5]} 29. g3 {[%clk
0:01:29.4]} 29... Kg7 {[%clk 0:01:38.9]} 30. Kf1 {[%clk 0:01:23]} 30... Qd7
{[%clk 0:01:38.8]} 31. Kg2 {[%clk 0:01:13.3]} 31... Qb7 {[%clk 0:01:38.6]} 32.
Kf1 {[%clk 0:01:12.6]} 32... Qd7 {[%clk 0:01:38.5]} 33. Kg2 {[%clk 0:01:12.8]}
33... Qb7 {[%clk 0:01:35.8]} 34. Kf1 {[%clk 0:01:12.8]} 1/2-1/2

[Event "Late-Titled-Tuesday-Blitz-March-19-2024"]
[Site "Chess.com"]
[Date "2024.03.19"]
[Round "10"]
[White "Heinza9"]
[Black "EternalNight8"]
[Result "0-1"]
[WhiteElo "2328"]
[BlackElo "2461"]
[TimeControl "180+1"]
[EndTime "15:51:40 PDT"]
[Termination "EternalNight8 won on time"]

1. c4 {[%clk 0:02:57.5]} 1... Nf6 {[%clk 0:02:56.4]} 2. Nc3 {[%clk 0:02:57.8]}
2... e6 {[%clk 0:02:55.7]} 3. e4 {[%clk 0:02:57.9]} 3... d5 {[%clk 0:02:51.4]}
4. e5 {[%clk 0:02:58.2]} 4... Nfd7 {[%clk 0:02:50.6]} 5. cxd5 {[%clk 0:02:57.9]}
5... exd5 {[%clk 0:02:50.7]} 6. d4 {[%clk 0:02:45.3]} 6... Nb6 {[%clk
0:02:44.7]} 7. Nf3 {[%clk 0:02:41.4]} 7... c5 {[%clk 0:02:43.6]} 8. Bg5 {[%clk
0:02:30.8]} 8... Be7 {[%clk 0:02:39.9]} 9. Bxe7 {[%clk 0:02:29.1]} 9... Qxe7
{[%clk 0:02:39.8]} 10. dxc5 {[%clk 0:02:17.7]} 10... Qxc5 {[%clk 0:02:38.2]} 11.
Bd3 {[%clk 0:02:18.2]} 11... O-O {[%clk 0:02:27.5]} 12. h4 {[%clk 0:02:03.2]}
12... Nc6 {[%clk 0:02:19.5]} 13. Bxh7+ {[%clk 0:00:29.8]} 13... Kxh7 {[%clk
0:02:18.3]} 14. Ng5+ {[%clk 0:00:21.3]} 14... Kg8 {[%clk 0:02:17.7]} 15. Qh5
{[%clk 0:00:13]} 15... Bf5 {[%clk 0:02:17.2]} 16. O-O-O {[%clk 0:00:07.7]} 16...
Nb4 {[%clk 0:02:12.8]} 17. Qf3 {[%clk 0:00:01.9]} 17... Nxa2+ {[%clk 0:01:43.2]}
0-1

[Event "Late-Titled-Tuesday-Blitz-March-19-2024"]
[Site "Chess.com"]
[Date "2024.03.19"]
[Round "10"]
[White "mbojan"]
[Black "dropstoneDP"]
[Result "1/2-1/2"]
[WhiteElo "2822"]
[BlackElo "2979"]
[TimeControl "180+1"]
[EndTime "15:51:56 PDT"]
[Termination "Game drawn by repetition"]

1. Nf3 {[%clk 0:02:59.9]} 1... Nf6 {[%clk 0:02:58.2]} 2. d4 {[%clk 0:03:00]}
2... d5 {[%clk 0:02:58.2]} 3. e3 {[%clk 0:03:00.4]} 3... c5 {[%clk 0:02:58.3]}
4. c4 {[%clk 0:02:53.5]} 4... cxd4 {[%clk 0:02:57.7]} 5. exd4 {[%clk 0:02:53.1]}
5... g6 {[%clk 0:02:57.7]} 6. Nc3 {[%clk 0:02:52.7]} 6... Bg7 {[%clk 0:02:57.9]}
7. Be2 {[%clk 0:02:50.3]} 7... O-O {[%clk 0:02:58.4]} 8. O-O {[%clk 0:02:50.6]}
8... dxc4 {[%clk 0:02:58.8]} 9. Bxc4 {[%clk 0:02:50.5]} 9... Nc6 {[%clk
0:02:59.2]} 10. Be3 {[%clk 0:02:50.2]} 10... Bg4 {[%clk 0:02:59]} 11. h3 {[%clk
0:02:46.1]} 11... Bxf3 {[%clk 0:02:58.8]} 12. Qxf3 {[%clk 0:02:46.8]} 12... Nxd4
{[%clk 0:02:35.8]} 13. Qxb7 {[%clk 0:02:46.4]} 13... Nc2 {[%clk 0:02:35.9]} 14.
Rad1 {[%clk 0:02:42.3]} 14... Qc8 {[%clk 0:02:36]} 15. Qxc8 {[%clk 0:01:53.2]}
15... Raxc8 {[%clk 0:02:35.2]} 16. b3 {[%clk 0:01:44]} 16... Nxe3 {[%clk
0:02:32.8]} 17. fxe3 {[%clk 0:01:44.9]} 17... Rfd8 {[%clk 0:02:32.2]} 18. Rxd8+
{[%clk 0:01:33.8]} 18... Rxd8 {[%clk 0:02:33.1]} 19. Rd1 {[%clk 0:01:34.2]}
19... Rxd1+ {[%clk 0:02:31.8]} 20. Nxd1 {[%clk 0:01:35.1]} 20... Ne4 {[%clk
0:02:31.5]} 21. Bd5 {[%clk 0:01:22.1]} 21... Nc3 {[%clk 0:02:31.4]} 22. Nxc3
{[%clk 0:01:21.5]} 22... Bxc3 {[%clk 0:02:32.3]} 23. Kf2 {[%clk 0:01:21.7]}
23... e6 {[%clk 0:02:32.9]} 24. Bc4 {[%clk 0:01:21.6]} 24... Kf8 {[%clk
0:02:33.4]} 25. Kf3 {[%clk 0:01:21.4]} 25... Ke7 {[%clk 0:02:33.1]} 26. Bb5
{[%clk 0:01:21.2]} 26... f5 {[%clk 0:02:33]} 27. Ba6 {[%clk 0:01:15.9]} 27...
Kf6 {[%clk 0:02:32.7]} 28. Bc8 {[%clk 0:01:13.3]} 28... h5 {[%clk 0:02:32.7]}
29. Bd7 {[%clk 0:01:13.1]} 29... g5 {[%clk 0:02:28.7]} 30. e4 {[%clk 0:00:51.9]}
30... g4+ {[%clk 0:02:28.7]} 31. Ke3 {[%clk 0:00:50.6]} 31... Ke5 {[%clk
0:02:23]} 32. exf5 {[%clk 0:00:48.9]} 32... exf5 {[%clk 0:02:23.9]} 33. hxg4
{[%clk 0:00:40.4]} 33... hxg4 {[%clk 0:02:24.8]} 34. Ke2 {[%clk 0:00:34.7]}
34... Bb4 {[%clk 0:02:23.2]} 35. Bc8 {[%clk 0:00:34.6]} 35... Kf4 {[%clk
0:02:23]} 36. Bd7 {[%clk 0:00:34.5]} 36... Kg5 {[%clk 0:02:23.3]} 37. Bc8 {[%clk
0:00:34.6]} 37... f4 {[%clk 0:02:23.8]} 38. Bd7 {[%clk 0:00:32.1]} 38... Kh4
{[%clk 0:02:23.9]} 39. Kf1 {[%clk 0:00:29.6]} 39... Kg3 {[%clk 0:02:24.2]} 40.
Bc8 {[%clk 0:00:29.6]} 40... a5 {[%clk 0:02:24.3]} 41. Bd7 {[%clk 0:00:29.6]}
41... f3 {[%clk 0:02:24.5]} 42. gxf3 {[%clk 0:00:29.7]} 42... gxf3 {[%clk
0:02:25.4]} 43. Bc6 {[%clk 0:00:28.9]} 43... Kf4 {[%clk 0:02:24.8]} 44. Bb7
{[%clk 0:00:28.8]} 44... Ke3 {[%clk 0:02:24.9]} 45. Bc6 {[%clk 0:00:29.2]} 45...
Bc5 {[%clk 0:02:25.1]} 46. Bb7 {[%clk 0:00:29.5]} 46... f2 {[%clk 0:02:25.4]}
47. Bd5 {[%clk 0:00:28.6]} 47... Kd2 {[%clk 0:02:25.5]} 48. a4 {[%clk
0:00:28.5]} 48... Kc3 {[%clk 0:02:26]} 49. Bc4 {[%clk 0:00:29.1]} 49... Kb4
{[%clk 0:02:26.9]} 50. Ke2 {[%clk 0:00:29.2]} 50... Bb6 {[%clk 0:02:27.8]} 51.
Kf1 {[%clk 0:00:29.4]} 51... Bc5 {[%clk 0:02:28.7]} 52. Ke2 {[%clk 0:00:29.9]}
52... Bb6 {[%clk 0:02:29.6]} 53. Kf1 {[%clk 0:00:30.3]} 53... Bc5 {[%clk
0:02:30.5]} 1/2-1/2

[Event "Late-Titled-Tuesday-Blitz-March-19-2024"]
[Site "Chess.com"]
[Date "2024.03.19"]
[Round "10"]
[White "GlavkonVVS"]
[Black "norwaytoadog"]
[Result "1-0"]
[WhiteElo "2649"]
[BlackElo "2358"]
[TimeControl "180+1"]
[EndTime "15:52:14 PDT"]
[Termination "GlavkonVVS won by resignation"]

1. c4 {[%clk 0:03:00.9]} 1... e5 {[%clk 0:02:59.4]} 2. Nc3 {[%clk 0:03:01]} 2...
Nf6 {[%clk 0:03:00]} 3. g3 {[%clk 0:03:01.1]} 3... Bb4 {[%clk 0:02:59.5]} 4. Bg2
{[%clk 0:03:01.2]} 4... Bxc3 {[%clk 0:02:58.4]} 5. bxc3 {[%clk 0:03:01]} 5...
O-O {[%clk 0:02:58.7]} 6. Nf3 {[%clk 0:03:01.2]} 6... Re8 {[%clk 0:02:57.9]} 7.
O-O {[%clk 0:03:01.2]} 7... Nc6 {[%clk 0:02:57.7]} 8. d3 {[%clk 0:03:00.1]} 8...
d6 {[%clk 0:02:57.7]} 9. Rb1 {[%clk 0:02:58.5]} 9... e4 {[%clk 0:02:55.8]} 10.
Nd4 {[%clk 0:02:55.3]} 10... exd3 {[%clk 0:02:48.4]} 11. exd3 {[%clk 0:02:55.5]}
11... Nxd4 {[%clk 0:02:48.5]} 12. cxd4 {[%clk 0:02:55.4]} 12... d5 {[%clk
0:02:48.7]} 13. Bg5 {[%clk 0:02:51.8]} 13... h6 {[%clk 0:02:43.7]} 14. Bxf6
{[%clk 0:02:48.7]} 14... Qxf6 {[%clk 0:02:43.7]} 15. cxd5 {[%clk 0:02:40.4]}
15... Qxd4 {[%clk 0:02:41.4]} 16. Qc2 {[%clk 0:02:38.8]} 16... Re7 {[%clk
0:01:48.2]} 17. Rfe1 {[%clk 0:02:32.4]} 17... Rxe1+ {[%clk 0:01:43.4]} 18. Rxe1
{[%clk 0:02:31.8]} 18... Bf5 {[%clk 0:01:37.6]} 19. Qxc7 {[%clk 0:02:30.9]}
19... Rc8 {[%clk 0:01:35.3]} 20. Qf4 {[%clk 0:02:07.7]} 20... Qxd3 {[%clk
0:01:22.9]} 21. Bf1 {[%clk 0:02:05.6]} 21... Qc2 {[%clk 0:00:34.6]} 22. g4
{[%clk 0:01:57.4]} 22... Bg6 {[%clk 0:00:31.7]} 23. d6 {[%clk 0:01:55.7]} 23...
Rd8 {[%clk 0:00:31.2]} 24. h4 {[%clk 0:01:51]} 24... Qc5 {[%clk 0:00:28.8]} 25.
h5 {[%clk 0:01:49.3]} 25... Bh7 {[%clk 0:00:21.7]} 26. Re7 {[%clk 0:01:48.5]}
26... Qd5 {[%clk 0:00:14.4]} 27. Bc4 {[%clk 0:01:45.7]} 27... Qd1+ {[%clk
0:00:12.9]} 28. Kh2 {[%clk 0:01:45.5]} 28... Qa1 {[%clk 0:00:10.5]} 29. Qxf7+
{[%clk 0:01:42.4]} 29... Kh8 {[%clk 0:00:10.8]} 30. Re8+ {[%clk 0:01:42.7]}
30... Rxe8 {[%clk 0:00:09.9]} 31. Qxe8+ {[%clk 0:01:42.9]} 1-0

[Event "Late-Titled-Tuesday-Blitz-March-19-2024"]
[Site "Chess.com"]
[Date "2024.03.19"]
[Round "10"]
[White "bitter-cikolata"]
[Black "Yurovskykh_Oleksandr"]
[Result "0-1"]
[WhiteElo "2508"]
[BlackElo "2593"]
[TimeControl "180+1"]
[EndTime "15:52:31 PDT"]
[Termination "Yurovskykh_Oleksandr won by checkmate"]

1. e4 {[%clk 0:03:00.9]} 1... e6 {[%clk 0:02:55.5]} 2. d4 {[%clk 0:02:59.9]}
2... d5 {[%clk 0:02:53.5]} 3. Nd2 {[%clk 0:03:00.4]} 3... dxe4 {[%clk
0:02:52.9]} 4. Nxe4 {[%clk 0:03:01.3]} 4... Bd7 {[%clk 0:02:52.2]} 5. Nf3 {[%clk
0:03:00.7]} 5... Bc6 {[%clk 0:02:51.7]} 6. Neg5 {[%clk 0:03:00.3]} 6... Bd6
{[%clk 0:02:38.3]} 7. Bd3 {[%clk 0:02:58.1]} 7... Nf6 {[%clk 0:02:32.9]} 8. Qe2
{[%clk 0:02:55.4]} 8... O-O {[%clk 0:02:27.3]} 9. c3 {[%clk 0:02:52.6]} 9...
Nbd7 {[%clk 0:02:15]} 10. O-O {[%clk 0:02:49.6]} 10... h6 {[%clk 0:02:08.9]} 11.
Ne4 {[%clk 0:02:47.8]} 11... Nxe4 {[%clk 0:02:08.8]} 12. Bxe4 {[%clk 0:02:48.7]}
12... Bxe4 {[%clk 0:02:09.5]} 13. Qxe4 {[%clk 0:02:49.6]} 13... c6 {[%clk
0:02:09.4]} 14. Re1 {[%clk 0:02:46.1]} 14... Qc7 {[%clk 0:02:05.9]} 15. Qh4
{[%clk 0:02:37]} 15... Rfe8 {[%clk 0:01:59]} 16. Bxh6 {[%clk 0:02:04.8]} 16...
gxh6 {[%clk 0:01:48.9]} 17. Qxh6 {[%clk 0:02:05.7]} 17... Bf8 {[%clk 0:01:25.8]}
18. Qh4 {[%clk 0:02:03]} 18... Bg7 {[%clk 0:01:22.5]} 19. Re4 {[%clk 0:01:59.4]}
19... Nf6 {[%clk 0:01:22]} 20. Rf4 {[%clk 0:01:56.4]} 20... Qe7 {[%clk
0:01:17.8]} 21. Ng5 {[%clk 0:01:54.8]} 21... Rad8 {[%clk 0:00:57]} 22. Re1
{[%clk 0:01:53.7]} 22... Rd5 {[%clk 0:00:55.9]} 23. Re3 {[%clk 0:01:46.1]} 23...
Rxg5 {[%clk 0:00:43.8]} 24. Qxg5 {[%clk 0:01:46]} 24... Nd5 {[%clk 0:00:44]} 25.
Qg4 {[%clk 0:01:43.5]} 25... Nxf4 {[%clk 0:00:38.2]} 26. Qxf4 {[%clk 0:01:44.4]}
26... Qf6 {[%clk 0:00:38.3]} 27. Qc7 {[%clk 0:01:43.7]} 27... Qe7 {[%clk
0:00:35.8]} 28. Qf4 {[%clk 0:01:42.1]} 28... Rd8 {[%clk 0:00:28.8]} 29. Rg3
{[%clk 0:01:38.1]} 29... a6 {[%clk 0:00:24]} 30. h4 {[%clk 0:01:36.7]} 30... Rd5
{[%clk 0:00:22.1]} 31. Qg4 {[%clk 0:01:30.9]} 31... Qf6 {[%clk 0:00:20.3]} 32.
h5 {[%clk 0:01:30.1]} 32... Kh7 {[%clk 0:00:20.3]} 33. Qe4+ {[%clk 0:01:29.1]}
33... Qf5 {[%clk 0:00:19.1]} 34. Qh4 {[%clk 0:01:23.8]} 34... Bf6 {[%clk
0:00:15.9]} 35. Qh2 {[%clk 0:01:19.3]} 35... Qb1# {[%clk 0:00:15.4]} 0-1

[Event "Late-Titled-Tuesday-Blitz-March-19-2024"]
[Site "Chess.com"]
[Date "2024.03.19"]
[Round "10"]
[White "Rawnsdale"]
[Black "only_strong_moves"]
[Result "1-0"]
[WhiteElo "2557"]
[BlackElo "2645"]
[TimeControl "180+1"]
[EndTime "15:52:42 PDT"]
[Termination "Rawnsdale won by resignation"]

1. e4 {[%clk 0:02:13.2]} 1... a6 {[%clk 0:03:00.9]} 2. d4 {[%clk 0:02:12.7]}
2... b5 {[%clk 0:02:59.9]} 3. a4 {[%clk 0:02:11.9]} 3... b4 {[%clk 0:02:59.6]}
4. Nf3 {[%clk 0:02:11]} 4... e6 {[%clk 0:03:00.1]} 5. Bd3 {[%clk 0:02:11.4]}
5... Bb7 {[%clk 0:03:00.8]} 6. O-O {[%clk 0:02:11.7]} 6... Nf6 {[%clk
0:03:01.5]} 7. Re1 {[%clk 0:02:12.2]} 7... Be7 {[%clk 0:03:02.2]} 8. Bf4 {[%clk
0:02:11.6]} 8... d6 {[%clk 0:03:02]} 9. Nbd2 {[%clk 0:02:12.1]} 9... Nbd7 {[%clk
0:03:01.8]} 10. Nc4 {[%clk 0:02:11.3]} 10... d5 {[%clk 0:02:57.9]} 11. Na5
{[%clk 0:02:04.6]} 11... Qc8 {[%clk 0:02:51.5]} 12. Nxb7 {[%clk 0:02:02.3]}
12... Qxb7 {[%clk 0:02:52.4]} 13. e5 {[%clk 0:01:59.5]} 13... Ne4 {[%clk
0:02:46.9]} 14. Bxe4 {[%clk 0:01:54]} 14... dxe4 {[%clk 0:02:47.8]} 15. Nd2
{[%clk 0:01:54.4]} 15... Nb6 {[%clk 0:02:40.5]} 16. Nxe4 {[%clk 0:01:52.9]}
16... Rd8 {[%clk 0:02:41.2]} 17. Qf3 {[%clk 0:01:46.3]} 17... Qd5 {[%clk
0:02:32.5]} 18. c3 {[%clk 0:01:37.5]} 18... O-O {[%clk 0:02:30.3]} 19. a5 {[%clk
0:01:37.3]} 19... Nc4 {[%clk 0:02:29.7]} 20. b3 {[%clk 0:01:36.8]} 20... Nb2
{[%clk 0:02:19.7]} 21. Qe2 {[%clk 0:01:15.7]} 21... Qxb3 {[%clk 0:02:16.4]} 22.
Qg4 {[%clk 0:00:52.1]} 22... Nd3 {[%clk 0:02:11]} 23. Bh6 {[%clk 0:00:50.2]}
23... g6 {[%clk 0:02:10.3]} 24. Re3 {[%clk 0:00:39.2]} 24... Qb2 {[%clk
0:01:54.6]} 25. Rf1 {[%clk 0:00:32.3]} 25... Nc1 {[%clk 0:01:47.6]} 26. Qf3
{[%clk 0:00:21]} 26... bxc3 {[%clk 0:01:13.3]} 27. Nf6+ {[%clk 0:00:20.7]} 27...
Kh8 {[%clk 0:01:13.8]} 28. Re4 {[%clk 0:00:20.7]} 28... Nb3 {[%clk 0:01:09]} 29.
Rh4 {[%clk 0:00:19.5]} 29... Nxd4 {[%clk 0:00:53.9]} 30. Bg7+ {[%clk 0:00:17.8]}
1-0

[Event "Late-Titled-Tuesday-Blitz-March-19-2024"]
[Site "Chess.com"]
[Date "2024.03.19"]
[Round "10"]
[White "Inepton_Fermion"]
[Black "tylityli"]
[Result "1-0"]
[WhiteElo "2456"]
[BlackElo "2318"]
[TimeControl "180+1"]
[EndTime "15:52:52 PDT"]
[Termination "Inepton_Fermion won on time"]

1. d4 {[%clk 0:02:59.7]} 1... Nf6 {[%clk 0:02:54.2]} 2. Nc3 {[%clk 0:02:59.8]}
2... d5 {[%clk 0:02:54]} 3. Bg5 {[%clk 0:02:59.6]} 3... Nbd7 {[%clk 0:02:50.6]}
4. Nf3 {[%clk 0:02:58.4]} 4... e6 {[%clk 0:02:50.4]} 5. e4 {[%clk 0:02:58]} 5...
dxe4 {[%clk 0:02:49.9]} 6. Nxe4 {[%clk 0:02:57.8]} 6... Be7 {[%clk 0:02:50.4]}
7. Nxf6+ {[%clk 0:02:56.9]} 7... Nxf6 {[%clk 0:02:47.9]} 8. Bd3 {[%clk
0:02:56.6]} 8... h6 {[%clk 0:02:47]} 9. Bh4 {[%clk 0:02:56.4]} 9... c5 {[%clk
0:02:44.5]} 10. dxc5 {[%clk 0:02:55.4]} 10... Bxc5 {[%clk 0:02:43.3]} 11. O-O
{[%clk 0:02:54.1]} 11... a6 {[%clk 0:02:26]} 12. Qe2 {[%clk 0:02:53.4]} 12...
O-O {[%clk 0:02:18.1]} 13. Rad1 {[%clk 0:02:49.9]} 13... Bd7 {[%clk 0:01:53.9]}
14. Ne5 {[%clk 0:02:49.7]} 14... g5 {[%clk 0:01:41.9]} 15. Bg3 {[%clk
0:02:42.2]} 15... Qe7 {[%clk 0:01:38.1]} 16. Rfe1 {[%clk 0:02:23.2]} 16... Rad8
{[%clk 0:01:13.9]} 17. a3 {[%clk 0:02:01.3]} 17... Kg7 {[%clk 0:01:08.4]} 18. b4
{[%clk 0:02:00.6]} 18... Ba7 {[%clk 0:00:51.8]} 19. c4 {[%clk 0:01:51.4]} 19...
Be8 {[%clk 0:00:38.1]} 20. h4 {[%clk 0:01:41]} 20... Bd4 {[%clk 0:00:33.3]} 21.
hxg5 {[%clk 0:01:32.2]} 21... hxg5 {[%clk 0:00:32.8]} 22. Nf3 {[%clk 0:01:23.5]}
22... Nh5 {[%clk 0:00:13.9]} 23. Nxd4 {[%clk 0:01:22.2]} 23... Nxg3 {[%clk
0:00:13.6]} 24. Qe5+ {[%clk 0:01:21.3]} 24... Qf6 {[%clk 0:00:10.3]} 25. Nxe6+
{[%clk 0:00:55.9]} 25... fxe6 {[%clk 0:00:09.1]} 26. Qxg3 {[%clk 0:00:56.6]}
26... Rd4 {[%clk 0:00:06.2]} 27. Re5 {[%clk 0:00:55.4]} 1-0

[Event "Late-Titled-Tuesday-Blitz-March-19-2024"]
[Site "Chess.com"]
[Date "2024.03.19"]
[Round "10"]
[White "MagnusCarlsen"]
[Black "Oleksandr_Bortnyk"]
[Result "1-0"]
[WhiteElo "3268"]
[BlackElo "3089"]
[TimeControl "180+1"]
[EndTime "15:52:53 PDT"]
[Termination "MagnusCarlsen won by resignation"]

1. d4 {[%clk 0:02:59.8]} 1... Nf6 {[%clk 0:02:56.9]} 2. Bf4 {[%clk 0:02:59.6]}
2... d6 {[%clk 0:02:52.3]} 3. Nf3 {[%clk 0:02:56.3]} 3... b6 {[%clk 0:02:43.9]}
4. c4 {[%clk 0:02:45.9]} 4... Bb7 {[%clk 0:02:43.8]} 5. Nc3 {[%clk 0:02:46]}
5... e6 {[%clk 0:02:40.2]} 6. d5 {[%clk 0:02:43.4]} 6... e5 {[%clk 0:02:32.8]}
7. Bd2 {[%clk 0:02:42.7]} 7... Be7 {[%clk 0:02:32]} 8. e4 {[%clk 0:02:42.7]}
8... a5 {[%clk 0:02:32.7]} 9. Be2 {[%clk 0:02:39.8]} 9... Na6 {[%clk 0:02:32.2]}
10. O-O {[%clk 0:02:38.8]} 10... Nc5 {[%clk 0:02:32.6]} 11. Qc2 {[%clk
0:02:39.1]} 11... O-O {[%clk 0:02:25.7]} 12. Rfe1 {[%clk 0:02:36.6]} 12... Bc8
{[%clk 0:02:23.1]} 13. b3 {[%clk 0:02:36]} 13... Bg4 {[%clk 0:02:15.9]} 14. Be3
{[%clk 0:02:33]} 14... Bxf3 {[%clk 0:02:14.1]} 15. Bxf3 {[%clk 0:02:33]} 15...
Nfd7 {[%clk 0:02:13.2]} 16. Nb5 {[%clk 0:02:33]} 16... Na6 {[%clk 0:02:07.3]}
17. Bg4 {[%clk 0:02:32.9]} 17... Ndc5 {[%clk 0:02:02.4]} 18. a3 {[%clk
0:02:25.4]} 18... Bg5 {[%clk 0:02:00.7]} 19. Rab1 {[%clk 0:02:24.8]} 19... Bxe3
{[%clk 0:01:59.7]} 20. Rxe3 {[%clk 0:02:25.7]} 20... Qh4 {[%clk 0:01:54.8]} 21.
Qe2 {[%clk 0:02:10.1]} 21... a4 {[%clk 0:01:44]} 22. g3 {[%clk 0:02:07.3]} 22...
Qe7 {[%clk 0:01:39.6]} 23. b4 {[%clk 0:02:06.8]} 23... Nb3 {[%clk 0:01:39.4]}
24. Rd1 {[%clk 0:02:04.3]} 24... g6 {[%clk 0:01:34.8]} 25. h4 {[%clk 0:02:00.5]}
25... f5 {[%clk 0:01:28.8]} 26. exf5 {[%clk 0:01:59.8]} 26... gxf5 {[%clk
0:01:29.7]} 27. Bxf5 {[%clk 0:02:00]} 27... Kh8 {[%clk 0:01:12.4]} 28. Bc2
{[%clk 0:01:58.3]} 28... Rf7 {[%clk 0:01:07.6]} 29. Rf3 {[%clk 0:01:56.2]} 29...
Rg7 {[%clk 0:01:06.7]} 30. Kh2 {[%clk 0:01:53.7]} 30... Rag8 {[%clk 0:01:06]}
31. Rf5 {[%clk 0:01:47.3]} 31... Nb8 {[%clk 0:01:01.4]} 32. Qf3 {[%clk
0:01:38.3]} 32... Nd4 {[%clk 0:00:56.2]} 33. Nxd4 {[%clk 0:01:36.8]} 33... exd4
{[%clk 0:00:57.1]} 34. Bxa4 {[%clk 0:01:27.4]} 34... Rg4 {[%clk 0:00:52.5]} 35.
Rf4 {[%clk 0:01:24.2]} 35... R4g7 {[%clk 0:00:30.8]} 36. Qe4 {[%clk 0:01:16.4]}
36... Qd8 {[%clk 0:00:22.4]} 37. Qxd4 {[%clk 0:01:15.9]} 37... Nd7 {[%clk
0:00:23]} 38. Bxd7 {[%clk 0:01:15.7]} 38... Qxd7 {[%clk 0:00:23.9]} 39. Re1
{[%clk 0:01:15.7]} 39... Qd8 {[%clk 0:00:22.7]} 40. Rf7 {[%clk 0:01:12.9]} 40...
c5 {[%clk 0:00:20.3]} 41. dxc6 {[%clk 0:01:12.6]} 1-0